[Event "75th ARM-ch Women 2020"]
[Site "Yerevan"]
[Date "2020.01.18"]
[Round "7.3"]
[White "Gevorgyan, Maria"]
[Black "Hakobyan, Astghik"]
[Result "1-0"]
[ECO "B18"]
[WhiteElo "2187"]
[BlackElo "1917"]
[Annotator "ChessBase"]
[PlyCount "51"]
[EventDate "2020.01.12"]
[EventType "tourn"]
[EventCountry "ARM"]
[SourceTitle "playchess.com"]
[Source "ChessBase"]
[SourceQuality "1"]
[TimeControl "40/5400+30:1800+30"]

1. e4 {[%emt 0:06:38]} c6 {[%emt 0:00:00]} 2. d4 {[%emt 0:01:33]} d5 {[%emt 0:00:00]} 3. Nc3 {[%emt 0:00:17]} dxe4 {[%emt 0:00:00]} 4. Nxe4 {[%emt 0:00:05]} Bf5 {[%emt 0:00:00]} 5. Ng3 {[%emt 0:00:06]} Bg6 {[%emt 0:00:06]} 6. h4 {[%emt 0:00:04]} h6 {[%emt 0:00:06]} 7. Nh3 {[%emt 0:00:04]} e5 {[%emt 0:04:26]} 8. dxe5 {[%emt 0:04:20]} Qa5+ {[%emt 0:01:16]} 9. c3 {[%emt 0:01:11]} Qxe5+ {[%emt 0:01:10]} 10. Be2 {[%emt 0:02:01]} Nd7 {[%emt 0:02:19]} 11. O-O {[%emt 0:04:37]} O-O-O {[%emt 0:03:59]} 12. Qa4 {[%emt 0:01:05]} Bc5 {[%emt 0:04:50]} 13. Bf4 {[%emt 0:00:07]} Qf6 {[%emt 0:00:26]} 14. Rad1 {[%emt 0:06:34]} Nf8 {[%emt 0:19:48]} 15. Rfe1 {[%emt 0:20:56]} Rxd1 {[%emt 0:06:31]} 16. Bxd1 {[%emt 0:11:43]} Ne6 {[%emt 0:02:32]} 17. Bg4 {[%emt 0:02:52]} Qe7 {[%emt 0:12:58]} 18. Qa5 {[%emt 0:04:12]} Bb6 {[%emt 0:16:19]} 19. Qe5 {[%emt 0:00:14]} Kd7 {[%emt 0:05:02]} 20. Qxg7 {[%emt 0:03:04]} f5 {[%emt 0:03:29]} 21. Qxh8 {[%emt 0:01:48]} fxg4 {[%emt 0:00:42]} 22. Qxg8 {[%emt 0:01:29]} gxh3 {[%emt 0:06:50]} 23. Rd1+ {[%emt 0:00:45]} Bd4 {[%emt 0:03:50]} 24. Qxg6 {[%emt 0:00:05]} h2+ {[%emt 0:00:18]} 25. Kh1 {[%emt 0:00:37]} Qf8 {[%emt 0:02:31]} 26. Be3 {[%emt 0:01:49]} 1-0

[Event "75th ARM-ch Women 2020"]
[Site "Yerevan"]
[Date "2020.01.18"]
[Round "7.4"]
[White "Kursova, Maria"]
[Black "Khachatryan, Anna"]
[Result "*"]
[WhiteElo "2241"]
[BlackElo "2051"]
[Annotator "ChessBase"]
[PlyCount "27"]
[EventDate "2020.01.12"]
[EventType "tourn"]
[EventCountry "ARM"]
[SourceTitle "playchess.com"]
[Source "ChessBase"]
[SourceQuality "1"]
[TimeControl "40/5400+30:1800+30"]

1. d4 {[%emt 0:00:24]} Nf6 {[%emt 0:00:00]} 2. Nf3 {[%emt 0:00:18]} e6 {[%emt 0:00:00]} 3. c4 {[%emt 0:00:12]} b6 {[%emt 0:00:20]} 4. Nc3 {[%emt 0:01:09]} Bb7 {[%emt 0:00:09]} 5. Bg5 {[%emt 0:04:21]} Be7 {[%emt 0:04:52]} 6. e3 {[%emt 0:00:13]} h6 {[%emt 0:03:58]} 7. Bh4 {[%emt 0:02:04]} d6 {[%emt 0:04:05]} 8. Bd3 {[%emt 0:01:28]} Nbd7 {[%emt 0:18:51]} 9. O-O {[%emt 0:03:32]} c5 {[%emt 0:09:06]} 10. Rc1 {[%emt 0:06:40]} a6 {[%emt 0:03:22]} 11. Bb1 {[%emt 0:06:03]} O-O {[%emt 0:05:23]} 12. Qd3 {[%emt 0:04:13]} Qc7 {[%emt 0:06:13]} 13. d5 {[%emt 0:04:47]} e5 {[%emt 0:10:24]} 14. Nd2 {[%emt 0:01:47]} *

[Event "75th ARM-ch Women 2020"]
[Site "Yerevan"]
[Date "2020.01.18"]
[Round "7.4"]
[White "Gaboyan, Susanna"]
[Black "Avetisyan, Mariam"]
[Result "1-0"]
[ECO "E21"]
[WhiteElo "2205"]
[BlackElo "2163"]
[Annotator "ChessBase"]
[PlyCount "153"]
[EventDate "2020.01.12"]
[EventType "tourn"]
[EventCountry "ARM"]
[SourceTitle "playchess.com"]
[Source "ChessBase"]
[SourceQuality "1"]
[TimeControl "40/5400+30:1800+30"]

1. d4 {[%emt 0:00:24]} Nf6 {[%emt 0:00:00]} 2. Nf3 {[%emt 0:00:18]} e6 {[%emt 0:00:00]} 3. c4 {[%emt 0:00:12]} b6 {[%emt 0:00:20]} 4. Nc3 {[%emt 0:01:09]} Bb7 {[%emt 0:00:09]} 5. Bg5 {[%emt 0:04:21]} Be7 {[%emt 0:04:52]} 6. e3 {[%emt 0:00:13]} h6 {[%emt 0:03:58]} 7. Bh4 {[%emt 0:02:04]} d6 {[%emt 0:04:05]} 8. Bd3 {[%emt 0:01:28]} Nbd7 {[%emt 0:18:51]} 9. O-O {[%emt 0:03:32]} c5 {[%emt 0:09:06]} 10. Rc1 {[%emt 0:06:40]} a6 {[%emt 0:03:22]} 11. Bb1 {[%emt 0:06:03]} O-O {[%emt 0:05:23]} 12. Qd3 {[%emt 0:04:13]} Qc7 {[%emt 0:06:13]} 13. d5 {[%emt 0:04:47]} e5 {[%emt 0:10:24]} 14. Nd2 {[%emt 0:01:47]} g6 {[%emt 0:03:45]} 15. f4 {[%emt 0:01:53]} Qd8 {[%emt 0:03:43]} 16. Bg3 {[%emt 0:15:13]} Nh5 {[%emt 0:09:21]} 17. f5 {[%emt 0:02:34]} Ng7 {[%emt 0:06:27]} 18. Be1 {[%emt 0:11:51]} h5 {[%emt 0:05:05]} 19. h3 {[%emt 0:06:21]} f6 {[%emt 0:01:15]} 20. fxg6 {[%emt 0:02:21]} f5 {[%emt 0:00:05]} 21. g4 {[%emt 0:00:27]} fxg4 {[%emt 0:03:01]} 22. hxg4 {[%emt 0:00:48]} Rxf1+ {[%emt 0:00:57]} 23. Qxf1 {[%emt 0:00:51]} Qf8 {[%emt 0:00:08]} 24. Bf5 {[%emt 0:05:34]} Bc8 {[%emt 0:00:35]} 25. Nde4 {[%emt 0:02:52]} hxg4 {[%emt 0:00:38]} 26. Bxg4 {[%emt 0:03:03]} Qxf1+ {[%emt 0:00:04]} 27. Kxf1 {[%emt 0:00:04]} Nf8 {[%emt 0:00:30]} 28. Bxc8 {[%emt 0:02:07]} Rxc8 {[%emt 0:00:03]} 29. Ke2 {[%emt 0:00:30]} Nxg6 {[%emt 0:00:34]} 30. a4 {[%emt 0:02:47]} Rb8 {[%emt 0:00:44]} 31. Ra1 {[%emt 0:00:35]} Nf5 {[%emt 0:00:33]} 32. Ra3 {[%emt 0:00:33]} Bd8 {[%emt 0:00:31]} 33. Rb3 {[%emt 0:00:27]} Bc7 {[%emt 0:00:05]} 34. Ng5 {[%emt 0:04:32]} Nf8 {[%emt 0:00:32]} 35. Nce4 {[%emt 0:00:03]} Kg7 {[%emt 0:00:51]} 36. Ra3 {[%emt 0:01:27]} a5 {[%emt 0:00:47]} 37. Nc3 {[%emt 0:00:19]} Rb7 {[%emt 0:00:50]} 38. Rb3 {[%emt 0:00:49]} Kg6 {[%emt 0:00:35]} 39. Nge4 {[%emt 0:00:36]} Nd7 {[%emt 0:00:15]} 40. Nb5 {[%emt 0:00:00]} Bb8 {[%emt 0:00:00]} 41. Kd3 {[%emt 0:03:37]} Kh6 {[%emt 0:11:56]} 42. Rc3 {[%emt 0:00:25]} Nf8 {[%emt 0:01:34]} 43. Rc2 {[%emt 0:00:35]} Rf7 {[%emt 0:05:14]} 44. Rf2 {[%emt 0:04:53]} Kg6 {[%emt 0:01:13]} 45. Rf1 {[%emt 0:00:14]} Nd7 {[%emt 0:05:08]} 46. Rg1+ {[%emt 0:04:31]} Kh6 {[%emt 0:00:25]} 47. Rh1+ {[%emt 0:00:32]} Kg6 {[%emt 0:00:15]} 48. Bh4 {[%emt 0:01:08]} Rf8 {[%emt 0:03:59]} 49. Rg1+ {[%emt 0:04:09]} Kf7 {[%emt 0:01:14]} 50. Rf1 {[%emt 0:00:26]} Kg6 {[%emt 0:00:03]} 51. Be1 {[%emt 0:06:01]} Rf7 {[%emt 0:00:23]} 52. b3 {[%emt 0:02:04]} Kh6 {[%emt 0:03:35]} 53. Rg1 {[%emt 0:05:29]} Nf8 {[%emt 0:01:00]} 54. Rg4 {[%emt 0:03:40]} Rg7 {[%emt 0:00:42]} 55. Rxg7 {[%emt 0:01:25]} Kxg7 {[%emt 0:00:04]} 56. Ng5 {[%emt 0:01:36]} Kf6 {[%emt 0:00:56]} 57. Nf3 {[%emt 0:00:03]} Ng6 {[%emt 0:00:24]} 58. Ke4 {[%emt 0:00:29]} Ng7 {[%emt 0:01:05]} 59. Bh4+ {[%emt 0:00:31]} Nxh4 {[%emt 0:00:06]} 60. Nxh4 {[%emt 0:00:05]} Kg5 {[%emt 0:00:35]} 61. Nf3+ {[%emt 0:00:16]} Kf6 {[%emt 0:00:23]} 62. Nd2 {[%emt 0:00:43]} Nf5 {[%emt 0:00:18]} 63. Kf3 {[%emt 0:00:06]} Kg5 {[%emt 0:01:08]} 64. Ne4+ {[%emt 0:02:21]} Kg6 {[%emt 0:00:04]} 65. Nf2 {[%emt 0:00:31]} Nh4+ {[%emt 0:00:21]} 66. Ke4 {[%emt 0:00:48]} Kg5 {[%emt 0:00:50]} 67. Kd3 {[%emt 0:00:31]} Kf5 {[%emt 0:00:14]} 68. Ne4 {[%emt 0:00:13]} Kg4 {[%emt 0:01:25]} 69. Nexd6 {[%emt 0:00:07]} Kf3 {[%emt 0:00:14]} 70. Ne4 {[%emt 0:00:37]} Ng6 {[%emt 0:00:52]} 71. d6 {[%emt 0:00:29]} Nf8 {[%emt 0:00:07]} 72. Nf6 {[%emt 0:00:05]} e4+ {[%emt 0:00:37]} 73. Kd2 {[%emt 0:00:43]} Ne6 {[%emt 0:00:45]} 74. Nd7 {[%emt 0:00:09]} Bxd6 {[%emt 0:00:26]} 75. Nxd6 {[%emt 0:00:05]} Ng5 {[%emt 0:00:07]} 76. Nxb6 {[%emt 0:00:14]} Kf2 {[%emt 0:00:06]} 77. Nd5 {[%emt 0:00:10]} 1-0

[Event "75th ARM-ch Women 2020"]
[Site "Yerevan"]
[Date "2020.01.18"]
[Round "7.5"]
[White "Arakelyan, Nare"]
[Black "Ghukasyan, Siranush"]
[Result "*"]
[WhiteElo "1913"]
[BlackElo "2246"]
[Annotator "ChessBase"]
[PlyCount "27"]
[EventDate "2020.01.12"]
[EventType "tourn"]
[EventCountry "ARM"]
[SourceTitle "playchess.com"]
[Source "ChessBase"]
[SourceQuality "1"]
[TimeControl "40/5400+30:1800+30"]

1. d4 {[%emt 0:00:00]} Nf6 {[%emt 0:00:29]} 2. Bf4 {[%emt 0:00:00]} e6 {[%emt 0:02:33]} 3. e3 {[%emt 0:00:07]} d5 {[%emt 0:00:07]} 4. Nf3 {[%emt 0:00:34]} c5 {[%emt 0:00:14]} 5. c3 {[%emt 0:00:06]} Nc6 {[%emt 0:00:07]} 6. Nbd2 {[%emt 0:00:47]} Be7 {[%emt 0:07:08]} 7. Bd3 {[%emt 0:00:47]} O-O {[%emt 0:02:19]} 8. Ne5 {[%emt 0:00:14]} Qb6 {[%emt 0:06:23]} 9. Rb1 {[%emt 0:06:07]} Ne8 {[%emt 0:12:47]} 10. h4 {[%emt 0:12:39]} f5 {[%emt 0:04:56]} 11. g4 {[%emt 0:05:16]} Qd8 {[%emt 0:11:12]} 12. g5 {[%emt 0:04:14]} Nxe5 {[%emt 0:12:22]} 13. dxe5 {[%emt 0:00:21]} Nc7 {[%emt 0:01:20]} 14. Rg1 {[%emt 0:11:49]} *

[Event "75th ARM-ch Women 2020"]
[Site "Yerevan"]
[Date "2020.01.18"]
[Round "7.5"]
[White "Khachatryan, Veronika"]
[Black "Ambarjyan, Tereza"]
[Result "1-0"]
[ECO "A45"]
[WhiteElo "1905"]
[BlackElo "1514"]
[Annotator "NA"]
[PlyCount "57"]
[EventDate "2020.01.12"]
[EventType "tourn"]
[EventCountry "ARM"]
[SourceTitle "playchess.com"]
[Source "ChessBase"]
[SourceQuality "1"]
[TimeControl "40/5400+30:1800+30"]

1. d4 {[%emt 0:00:00]} Nf6 {[%emt 0:00:29]} 2. Bf4 {[%emt 0:00:00]} e6 {[%emt 0:02:33]} 3. e3 {[%emt 0:00:07]} d5 {[%emt 0:00:07]} 4. Nf3 {[%emt 0:00:34]} c5 {[%emt 0:00:14]} 5. c3 {[%emt 0:00:06]} Nc6 {[%emt 0:00:07]} 6. Nbd2 {[%emt 0:00:47]} Be7 {[%emt 0:07:08]} 7. Bd3 {[%emt 0:00:47]} O-O {[%emt 0:02:19]} 8. Ne5 {[%emt 0:00:14]} Qb6 {[%emt 0:06:23]} 9. Rb1 {[%emt 0:06:07]} Ne8 {[%emt 0:12:47]} 10. h4 {[%emt 0:12:39]} f5 {[%emt 0:04:56]} 11. g4 {[%emt 0:05:16]} Qd8 {[%emt 0:11:12]} 12. g5 $14 {[%emt 0:04:14]} Nxe5 {[%emt 0:12:22]} 13. dxe5 {[%emt 0:00:21]} Nc7 {[%emt 0:01:20]} 14. Rg1 {[%emt 0:11:49]} Qe8 {[%emt 0:05:31]} 15. g6 {[%emt 0:05:03]} hxg6 {[%emt 0:05:08]} 16. h5 {[%emt 0:00:09]} g5 {[%emt 0:01:50]} 17. Bxg5 {[%emt 0:01:49]} Bxg5 {[%emt 0:03:42]} 18. Rxg5 {[%emt 0:00:03]} Kf7 {[%emt 0:00:44]} 19. Qf3 {[%emt 0:09:52]} Bd7 {[%emt 0:03:27]} 20. Qg3 {[%emt 0:17:33]} Rg8 {[%emt 0:00:22]} 21. Be2 {[%emt 0:00:42]} Bb5 {[%emt 0:07:50]} 22. h6 {[%emt 0:01:36]} g6 {[%emt 0:04:10]} 23. h7 {[%emt 0:00:07]} Rh8 {[%emt 0:03:08]} 24. Bh5 {[%emt 0:06:51]} gxh5 {[%emt 0:03:37]} 25. Rg7+ {[%emt 0:00:08]} Kf8 {[%emt 0:00:03]} 26. Rg8+ {[%emt 0:01:12]} Ke7 {[%emt 0:00:06]} 27. Qg7+ {[%emt 0:00:09]} Qf7 {[%emt 0:00:50]} 28. Qxh8 {[%emt 0:00:05]} Qg6 {[%emt 0:00:54]} 29. Rg7+ {[%emt 0:00:15]} 1-0

[Event "75th ARM-ch Women 2020"]
[Site "Yerevan"]
[Date "2020.01.19"]
[Round "8.1"]
[White "Avetisyan, Mariam"]
[Black "Ghukasyan, Siranush"]
[Result "1/2-1/2"]
[ECO "D10"]
[WhiteElo "2163"]
[BlackElo "2246"]
[Annotator "NA"]
[PlyCount "38"]
[EventDate "2020.01.12"]
[EventType "tourn"]
[EventCountry "ARM"]
[SourceTitle "playchess.com"]
[Source "ChessBase"]
[SourceQuality "1"]
[TimeControl "40/5400+30:1800+30"]

1. d4 {[%emt 0:00:00]} d5 {[%emt 0:00:06]} 2. c4 {[%emt 0:00:00]} c6 {[%emt 0:00:14]} 3. cxd5 {[%emt 0:00:00]} cxd5 {[%emt 0:00:05]} 4. Bf4 {[%emt 0:00:00]} Nc6 {[%emt 0:00:23]} 5. e3 {[%emt 0:00:00]} Bf5 {[%emt 0:00:42]} 6. Nc3 {[%emt 0:00:22]} Nf6 {[%emt 0:00:06]} 7. Qb3 {[%emt 0:00:08]} Na5 {[%emt 0:00:06]} 8. Qa4+ {[%emt 0:00:04]} Bd7 {[%emt 0:00:05]} 9. Qc2 {[%emt 0:00:09]} e6 {[%emt 0:00:24]} 10. Bd3 {[%emt 0:00:42]} Rc8 {[%emt 0:02:25]} 11. Nf3 {[%emt 0:00:41]} Be7 {[%emt 0:01:35]} 12. O-O {[%emt 0:01:03]} b5 {[%emt 0:02:44]} 13. a3 {[%emt 0:10:07]} O-O {[%emt 0:00:35]} 14. Ne5 {[%emt 0:10:21]} a6 {[%emt 0:02:10]} 15. Rac1 {[%emt 0:12:53]} Bc6 {[%emt 0:04:01]} 16. Qe2 {[%emt 0:10:30]} Bb7 {[%emt 0:02:19]} 17. Qf3 {[%emt 0:14:17]} Nc4 {[%emt 0:05:34]} 18. Nxc4 {[%emt 0:04:08]} bxc4 {[%emt 0:00:07]} 19. Bb1 {[%emt 0:04:40]} Bc6 {[%emt 0:25:31]} 1/2-1/2

[Event "75th ARM-ch Women 2020"]
[Site "Yerevan"]
[Date "2020.01.19"]
[Round "8.2"]
[White "Gaboyan, Susanna"]
[Black "Khachatryan, Veronika"]
[Result "1-0"]
[ECO "A05"]
[WhiteElo "2205"]
[BlackElo "1905"]
[Annotator "ChessBase"]
[PlyCount "129"]
[EventDate "2020.01.12"]
[EventType "tourn"]
[EventCountry "ARM"]
[SourceTitle "playchess.com"]
[Source "ChessBase"]
[SourceQuality "1"]
[TimeControl "40/5400+30:1800+30"]

1. Nf3 {[%emt 0:00:59]} Nf6 {[%emt 0:00:00]} 2. g3 {[%emt 0:00:06]} g6 {[%emt 0:00:00]} 3. Bg2 {[%emt 0:00:06]} Bg7 {[%emt 0:00:10]} 4. O-O {[%emt 0:00:07]} O-O {[%emt 0:00:03]} 5. d3 {[%emt 0:00:17]} c5 {[%emt 0:00:26]} 6. e4 {[%emt 0:00:07]} d6 {[%emt 0:01:02]} 7. Nbd2 {[%emt 0:01:47]} Nc6 {[%emt 0:00:23]} 8. a4 {[%emt 0:02:27]} Rb8 {[%emt 0:01:03]} 9. Nc4 {[%emt 0:00:32]} b6 {[%emt 0:13:30]} 10. e5 {[%emt 0:02:05]} Ng4 {[%emt 0:05:07]} 11. exd6 {[%emt 0:09:10]} exd6 {[%emt 0:00:09]} 12. Re1 {[%emt 0:07:53]} d5 {[%emt 0:09:23]} 13. Na3 {[%emt 0:03:48]} Be6 {[%emt 0:02:53]} 14. c3 {[%emt 0:09:10]} Rc8 {[%emt 0:17:51]} 15. Bf4 {[%emt 0:01:42]} a6 {[%emt 0:01:22]} 16. h3 {[%emt 0:07:23]} Nf6 {[%emt 0:00:21]} 17. d4 {[%emt 0:00:16]} Ne4 {[%emt 0:08:27]} 18. Nc2 {[%emt 0:01:05]} Qd7 {[%emt 0:02:21]} 19. g4 {[%emt 0:17:35]} h5 {[%emt 0:03:54]} 20. Ne5 {[%emt 0:03:14]} Nxe5 {[%emt 0:00:41]} 21. dxe5 {[%emt 0:00:02]} hxg4 {[%emt 0:04:02]} 22. hxg4 {[%emt 0:00:02]} f6 {[%emt 0:05:29]} 23. Bxe4 {[%emt 0:03:19]} dxe4 {[%emt 0:04:02]} 24. Qxd7 {[%emt 0:02:53]} Bxd7 {[%emt 0:00:01]} 25. Ne3 {[%emt 0:04:22]} fxe5 {[%emt 0:01:00]} 26. Bg3 {[%emt 0:00:33]} Be6 {[%emt 0:02:34]} 27. Red1 {[%emt 0:02:25]} Rcd8 {[%emt 0:00:23]} 28. Bh4 {[%emt 0:00:20]} Rd3 {[%emt 0:03:58]} 29. Be7 {[%emt 0:03:30]} Re8 {[%emt 0:02:35]} 30. Bg5 {[%emt 0:00:07]} Bb3 {[%emt 0:01:02]} 31. Re1 {[%emt 0:00:18]} Kf7 {[%emt 0:03:47]} 32. c4 {[%emt 0:01:09]} Re6 {[%emt 0:04:31]} 33. a5 {[%emt 0:01:38]} Bf8 {[%emt 0:01:07]} 34. axb6 {[%emt 0:04:19]} Rxb6 {[%emt 0:00:01]} 35. Ra5 {[%emt 0:00:10]} Rd4 {[%emt 0:01:22]} 36. Rc1 {[%emt 0:01:01]} Ke6 {[%emt 0:01:39]} 37. Ra3 {[%emt 0:01:24]} Rd3 {[%emt 0:00:45]} 38. Rca1 {[%emt 0:01:35]} Rdd6 {[%emt 0:00:55]} 39. Kf1 {[%emt 0:01:35]} Kd7 {[%emt 0:00:26]} 40. Kg2 {[%emt 0:00:00]} Kc8 {[%emt 0:00:00]} 41. Rh1 {[%emt 0:05:26]} Rb8 {[%emt 0:21:09]} 42. Rh8 {[%emt 0:01:40]} Kd7 {[%emt 0:01:18]} 43. Bh6 {[%emt 0:03:28]} Bxh6 {[%emt 0:05:29]} 44. Rxb8 {[%emt 0:00:09]} Bxe3 {[%emt 0:00:05]} 45. Raxb3 {[%emt 0:02:45]} Bf4 {[%emt 0:00:50]} 46. R3b7+ {[%emt 0:00:46]} Ke6 {[%emt 0:00:15]} 47. Rb6 {[%emt 0:00:12]} g5 {[%emt 0:00:29]} 48. Rxd6+ {[%emt 0:00:33]} Kxd6 {[%emt 0:00:01]} 49. Rb6+ {[%emt 0:00:08]} Kc7 {[%emt 0:00:10]} 50. Rxa6 {[%emt 0:00:05]} Kb7 {[%emt 0:00:09]} 51. Rd6 {[%emt 0:01:08]} Kc7 {[%emt 0:01:08]} 52. Rh6 {[%emt 0:00:38]} Kd7 {[%emt 0:01:49]} 53. Kf1 {[%emt 0:00:19]} Kc7 {[%emt 0:00:38]} 54. Ke2 {[%emt 0:00:22]} Kd7 {[%emt 0:00:24]} 55. Kd1 {[%emt 0:00:23]} Kc7 {[%emt 0:00:09]} 56. Kc2 {[%emt 0:00:06]} Kd7 {[%emt 0:00:07]} 57. Rh1 {[%emt 0:00:07]} e3 {[%emt 0:02:05]} 58. fxe3 {[%emt 0:00:21]} Bxe3 {[%emt 0:00:01]} 59. Kd3 {[%emt 0:00:14]} Bd4 {[%emt 0:00:13]} 60. b3 {[%emt 0:00:10]} Ke6 {[%emt 0:00:39]} 61. Rh6+ {[%emt 0:00:05]} Kf7 {[%emt 0:00:04]} 62. Ke4 {[%emt 0:00:05]} Kg7 {[%emt 0:00:25]} 63. Rc6 {[%emt 0:00:06]} Kf7 {[%emt 0:00:04]} 64. Kf5 {[%emt 0:00:23]} Ke7 {[%emt 0:00:13]} 65. Rg6 {[%emt 0:00:31]} 1-0

[Event "75th ARM-ch Women 2020"]
[Site "Yerevan"]
[Date "2020.01.19"]
[Round "8.3"]
[White "Khachatryan, Anna"]
[Black "Gevorgyan, Maria"]
[Result "0-1"]
[ECO "C45"]
[WhiteElo "2051"]
[BlackElo "2187"]
[Annotator "ChessBase"]
[PlyCount "96"]
[EventDate "2020.01.12"]
[EventType "tourn"]
[EventCountry "ARM"]
[SourceTitle "playchess.com"]
[Source "ChessBase"]
[SourceQuality "1"]
[TimeControl "40/5400+30:1800+30"]

1. e4 {[%emt 0:00:00]} e5 {[%emt 0:02:23]} 2. Nf3 {[%emt 0:00:00]} Nc6 {[%emt 0:00:12]} 3. d4 {[%emt 0:00:18]} exd4 {[%emt 0:00:07]} 4. Nxd4 {[%emt 0:00:02]} Nf6 {[%emt 0:00:06]} 5. Nxc6 {[%emt 0:00:07]} bxc6 {[%emt 0:00:06]} 6. e5 {[%emt 0:00:02]} Qe7 {[%emt 0:00:06]} 7. Qe2 {[%emt 0:00:03]} Nd5 {[%emt 0:00:05]} 8. h4 {[%emt 0:00:38]} a5 {[%emt 0:00:24]} 9. c4 {[%emt 0:21:02]} Ba6 {[%emt 0:00:10]} 10. Nd2 {[%emt 0:00:09]} Nb6 {[%emt 0:19:02]} 11. Qe4 {[%emt 0:12:13]} Qe6 {[%emt 0:05:04]} 12. a3 {[%emt 0:17:08]} d5 {[%emt 0:07:28]} 13. exd6 {[%emt 0:03:23]} Qxe4+ {[%emt 0:00:11]} 14. Nxe4 {[%emt 0:00:05]} cxd6 {[%emt 0:02:21]} 15. Bf4 {[%emt 0:12:47]} Nxc4 {[%emt 0:30:50]} 16. Bxc4 {[%emt 0:00:18]} Bxc4 {[%emt 0:00:03]} 17. Nxd6+ {[%emt 0:00:14]} Bxd6 {[%emt 0:00:05]} 18. Bxd6 {[%emt 0:00:03]} O-O-O {[%emt 0:00:07]} 19. O-O-O {[%emt 0:02:32]} Bb3 {[%emt 0:05:03]} 20. Rd2 {[%emt 0:11:34]} Rhe8 {[%emt 0:02:18]} 21. Bc5 {[%emt 0:02:34]} a4 {[%emt 0:05:08]} 22. Bb6 {[%emt 0:01:22]} Rd5 {[%emt 0:00:07]} 23. Be3 {[%emt 0:12:15]} Rde5 {[%emt 0:00:58]} 24. Rd3 {[%emt 0:01:30]} Rb5 {[%emt 0:03:58]} 25. Re1 {[%emt 0:01:19]} Re4 {[%emt 0:01:39]} 26. g3 {[%emt 0:00:24]} Rc4+ {[%emt 0:01:39]} 27. Rc3 {[%emt 0:00:01]} Rxc3+ {[%emt 0:00:06]} 28. bxc3 {[%emt 0:00:02]} Be6 {[%emt 0:00:06]} 29. Kd2 {[%emt 0:00:23]} Kd7 {[%emt 0:04:05]} 30. Kd3 {[%emt 0:00:31]} c5 {[%emt 0:00:18]} 31. Bc1 {[%emt 0:01:52]} Kc6 {[%emt 0:01:44]} 32. Ke4 {[%emt 0:00:30]} Rb3 {[%emt 0:00:46]} 33. Kd3 {[%emt 0:00:16]} Rb7 {[%emt 0:01:25]} 34. Kd2 {[%emt 0:00:42]} Kd5 {[%emt 0:00:45]} 35. Re3 {[%emt 0:00:26]} Bf5 {[%emt 0:00:49]} 36. Rf3 {[%emt 0:00:35]} Be4 {[%emt 0:02:51]} 37. c4+ {[%emt 0:00:24]} Kd4 {[%emt 0:04:21]} 38. Rf4 {[%emt 0:00:29]} Ke5 {[%emt 0:00:01]} 39. f3 {[%emt 0:00:20]} Bf5 {[%emt 0:00:01]} 40. Ke2 {[%emt 0:00:00]} f6 {[%emt 0:00:00]} 41. g4 {[%emt 0:01:54]} Bc2 {[%emt 0:04:29]} 42. Kf2 {[%emt 0:16:16]} g6 {[%emt 0:11:25]} 43. Be3 {[%emt 0:02:19]} h6 {[%emt 0:05:11]} 44. Bxc5 {[%emt 0:03:34]} Rd7 {[%emt 0:00:07]} 45. Be3 {[%emt 0:06:17]} g5 {[%emt 0:00:07]} 46. hxg5 {[%emt 0:00:02]} hxg5 {[%emt 0:00:04]} 47. Rf5+ {[%emt 0:00:10]} Bxf5 {[%emt 0:00:05]} 48. gxf5 {[%emt 0:00:02]} Rd3 {[%emt 0:00:29]} 0-1

[Event "75th ARM-ch Women 2020"]
[Site "Yerevan"]
[Date "2020.01.19"]
[Round "8.4"]
[White "Hakobyan, Astghik"]
[Black "Arakelyan, Nare"]
[Result "0-1"]
[ECO "B90"]
[WhiteElo "1917"]
[BlackElo "1913"]
[Annotator "NA"]
[PlyCount "124"]
[EventDate "2020.01.12"]
[EventType "tourn"]
[EventCountry "ARM"]
[SourceTitle "playchess.com"]
[Source "ChessBase"]
[SourceQuality "1"]
[TimeControl "40/5400+30:1800+30"]

1. e4 {[%emt 0:00:00]} c5 {[%emt 0:00:00]} 2. Nf3 {[%emt 0:00:00]} d6 {[%emt 0:00:00]} 3. Nc3 {[%emt 0:00:00]} a6 {[%emt 0:00:00]} 4. d4 {[%emt 0:00:02]} cxd4 {[%emt 0:00:00]} 5. Nxd4 {[%emt 0:00:07]} Nf6 {[%emt 0:00:00]} 6. Be3 {[%emt 0:00:26]} Ng4 {[%emt 0:00:02]} 7. Bc1 {[%emt 0:01:46]} Nf6 {[%emt 0:00:07]} 8. f3 {[%emt 0:00:31]} Qb6 {[%emt 0:00:05]} 9. Be3 {[%emt 0:16:00]} Qxb2 {[%emt 0:01:37]} 10. Na4 {[%emt 0:04:54]} Qb4+ {[%emt 0:02:27]} 11. c3 {[%emt 0:00:06]} Qa5 {[%emt 0:00:07]} 12. Rb1 {[%emt 0:07:44]} Nbd7 {[%emt 0:02:42]} 13. Qc2 {[%emt 0:21:56]} g6 {[%emt 0:02:11]} 14. Bd3 {[%emt 0:01:40]} Bg7 {[%emt 0:00:47]} 15. O-O {[%emt 0:00:42]} O-O {[%emt 0:00:07]} 16. c4 {[%emt 0:01:51]} Rb8 {[%emt 0:09:26]} 17. Rfd1 {[%emt 0:05:16]} Qc7 {[%emt 0:03:39]} 18. Qf2 {[%emt 0:12:02]} Ne5 {[%emt 0:05:15]} 19. Nb6 {[%emt 0:01:29]} Nxd3 {[%emt 0:00:09]} 20. Rxd3 {[%emt 0:00:01]} Re8 {[%emt 0:04:50]} 21. Rdb3 {[%emt 0:04:36]} e6 {[%emt 0:08:38]} 22. Ne2 {[%emt 0:05:21]} Nd7 {[%emt 0:02:36]} 23. Nxc8 {[%emt 0:01:22]} Rexc8 {[%emt 0:00:10]} 24. Ba7 {[%emt 0:00:17]} Ra8 {[%emt 0:02:03]} 25. Rxb7 {[%emt 0:00:02]} Qd8 {[%emt 0:00:18]} 26. Rd1 {[%emt 0:02:55]} Rc7 {[%emt 0:04:07]} 27. Bb6 {[%emt 0:00:33]} Nxb6 {[%emt 0:00:36]} 28. Rxb6 {[%emt 0:00:12]} Rxc4 {[%emt 0:01:09]} 29. Rbxd6 {[%emt 0:00:09]} Qa5 {[%emt 0:00:13]} 30. Nc1 {[%emt 0:02:26]} Qc7 {[%emt 0:04:10]} 31. Nb3 {[%emt 0:01:36]} Be5 {[%emt 0:00:18]} 32. Rd7 {[%emt 0:00:52]} Bxh2+ {[%emt 0:00:04]} 33. Kh1 {[%emt 0:02:22]} Qe5 {[%emt 0:00:14]} 34. Qh4 {[%emt 0:03:29]} Bf4 {[%emt 0:02:06]} 35. Nd2 {[%emt 0:02:28]} Rc2 {[%emt 0:00:51]} 36. Nf1 {[%emt 0:00:08]} Rxa2 {[%emt 0:01:07]} 37. Rxf7 {[%emt 0:01:19]} Bh6 {[%emt 0:02:49]} 38. Rfd7 {[%emt 0:01:44]} Qg5 {[%emt 0:01:38]} 39. Qh3 {[%emt 0:00:23]} Re8 {[%emt 0:00:33]} 40. Nh2 {[%emt 0:00:00]} Bg7 {[%emt 0:00:00]} 41. R7d6 {[%emt 0:13:11]} Kf7 {[%emt 0:03:57]} 42. Rf1 {[%emt 0:06:11]} Qf4 {[%emt 0:08:22]} 43. Rd7+ {[%emt 0:00:11]} Kg8 {[%emt 0:00:04]} 44. Ng4 {[%emt 0:01:49]} Ra5 {[%emt 0:04:47]} 45. e5 {[%emt 0:00:28]} h5 {[%emt 0:00:17]} 46. Nf2 {[%emt 0:03:14]} Qxe5 {[%emt 0:01:07]} 47. Ne4 {[%emt 0:04:06]} Ra1 {[%emt 0:00:53]} 48. Rdd1 {[%emt 0:00:50]} Rxd1 {[%emt 0:00:21]} 49. Rxd1 {[%emt 0:00:00]} a5 {[%emt 0:00:36]} 50. Qh4 {[%emt 0:00:30]} a4 {[%emt 0:13:40]} 51. Rd8 {[%emt 0:04:09]} Kf8 {[%emt 0:00:38]} 52. Rd3 {[%emt 0:01:36]} Qa1+ {[%emt 0:00:38]} 53. Kh2 {[%emt 0:00:01]} a3 {[%emt 0:07:02]} 54. Nd6 {[%emt 0:00:53]} Be5+ {[%emt 0:09:27]} 55. g3 {[%emt 0:00:54]} Qb2+ {[%emt 0:01:13]} 56. Kh3 {[%emt 0:00:04]} Qb1 {[%emt 0:00:34]} 57. Rd2 {[%emt 0:00:43]} Bxd6 {[%emt 0:00:19]} 58. Qf6+ {[%emt 0:00:25]} Kg8 {[%emt 0:00:08]} 59. Kg2 {[%emt 0:00:22]} Bf8 {[%emt 0:01:24]} 60. g4 {[%emt 0:00:59]} hxg4 {[%emt 0:00:19]} 61. fxg4 {[%emt 0:00:12]} Qe4+ {[%emt 0:00:04]} 62. Kh3 {[%emt 0:00:20]} Qe3+ {[%emt 0:00:16]} 0-1